bitfinex-derivatives/quotes_BNBF0:USTF0_20250810
["timestamp","ask_amount","ask_price","bid_price","bid_amount"]
[1754795358634,0.2147651,811.3,809.65,2.74852257]
[1754795359437,0.2147651,811.3,809.64,2.74852257]
[1754795359839,0.2147651,811.3,810.0,2.74852257]
[1754795360339,0.2147651,811.3,810.03,2.74852257]
[1754795360735,0.2147651,811.3,810.0,2.74852257]
[1754795361337,0.2147651,811.3,809.97,2.74852257]
[1754795361941,0.2147651,811.3,810.02,2.74852257]
[1754795363637,0.2147651,811.3,810.06,2.74852257]
[1754795364543,0.2147651,811.3,810.07,2.74852257]
[1754795365442,0.2147651,811.3,810.08,2.74852257]
[1754795366041,0.2147651,811.3,810.02,2.74852257]
[1754795367244,0.333,811.28,810.01,2.74852257]
[1754795367444,0.333,811.28,809.7,2.74852257]
[1754795367845,0.333,811.28,809.69,2.74852257]
[1754795368345,0.333,811.28,809.61,2.74852257]
[1754795369446,0.333,811.28,809.59,2.74852257]
[1754795370348,0.298,811.24,809.59,2.74852257]
[1754795371150,0.2147651,811.3,809.59,2.74852257]
[1754795371345,0.333,811.28,809.59,2.74852257]
[1754795372548,0.333,811.28,809.58,2.74852257]
[1754795372754,0.2147651,811.3,809.58,2.74852257]
[1754795373153,0.2147651,811.3,809.54,1.233]
[1754795378656,0.2147651,811.3,809.35,2.96315058]
[1754795378861,0.2147651,811.3,809.4,2.74852257]
[1754795379257,0.2147651,811.3,809.41,2.74852257]
[1754795380257,0.2147651,811.3,809.42,2.74852257]
[1754795382063,0.2147651,811.3,809.74,2.74852257]
[1754795382460,0.2147651,811.3,809.75,2.74852257]
[1754795382961,0.297,811.27,809.7,2.74852257]
[1754795383465,0.297,811.27,809.67,2.74852257]
[1754795383961,0.315,811.24,809.67,2.74852257]
[1754795384166,0.2147651,811.3,809.67,2.74852257]
[1754795384563,0.2147651,811.3,809.68,2.74852257]
[1754795385067,0.2147651,811.3,809.69,2.74852257]
[1754795385569,0.2147651,811.3,809.66,2.74852257]
[1754795386669,0.5,811.24,809.65,1.304]
[1754795389076,0.2147651,811.3,809.65,1.304]
[1754795389277,0.2147651,811.3,809.77,2.74852257]
[1754795389574,0.2147651,811.3,809.78,2.74852257]
[1754795390177,0.2147651,811.3,809.8,2.74852257]
[1754795390778,0.298,811.17,809.8,2.74852257]
[1754795390974,0.298,811.17,809.77,2.74852257]
[1754795391878,0.298,811.17,809.69,2.74852257]
[1754795392381,0.41,811.17,809.68,2.74852257]
[1754795392576,0.325,811.03,809.68,2.74852257]
[1754795392780,0.5,811.14,809.68,2.74852257]
[1754795393277,0.2147651,811.3,809.68,2.74852257]
[1754795393475,0.5,811.26,809.68,2.74852257]
[1754795393977,0.298,811.25,809.66,2.74852257]
[1754795394178,0.298,811.08,809.66,2.74852257]
[1754795394376,0.336,811.05,809.66,2.74852257]
[1754795394580,0.317,811.07,809.65,1.304]
[1754795394777,0.5,811.2,809.65,1.304]
[1754795394978,0.5,811.17,809.65,1.304]
[1754795396077,0.5,811.08,809.65,1.304]
[1754795396481,0.313,811.0,809.71,2.74852257]
[1754795396679,0.309,810.91,809.65,1.304]
[1754795396980,0.5,810.94,809.65,1.304]
[1754795397178,0.348,811.0,809.65,1.304]
[1754795397483,0.314,810.95,809.65,1.304]
[1754795397684,0.5,810.95,809.65,1.304]
[1754795397883,0.5,811.11,809.65,1.304]
[1754795398086,0.309,811.08,809.65,1.304]
[1754795398282,0.329,811.09,809.65,1.304]
[1754795398480,0.324,811.08,809.65,1.304]
[1754795398684,0.344,811.09,809.65,1.304]
[1754795398880,0.5,811.11,809.65,1.304]
[1754795400387,0.5,811.09,809.65,1.304]
[1754795400883,0.5,810.88,809.65,1.304]
[1754795401488,0.5,810.83,809.65,1.304]
[1754795401685,0.5,810.93,809.65,1.304]
[1754795401886,0.294,810.88,809.65,1.304]
[1754795402087,0.5,810.94,809.65,1.304]
[1754795402286,0.402,810.77,809.65,1.304]
[1754795402490,0.5,810.89,809.65,1.304]
[1754795403087,0.5,810.83,809.65,1.304]
[1754795403287,0.5,810.9,809.65,1.304]
[1754795403688,0.324,810.81,809.65,1.304]
[1754795403989,0.309,810.72,809.65,1.304]
[1754795404193,0.5,810.74,809.65,1.304]
[1754795404987,0.5,810.85,809.65,1.304]
[1754795405188,0.5,810.88,809.65,1.304]
[1754795405993,0.4,810.99,809.65,1.304]
[1754795406190,0.5,811.01,809.65,1.304]
[1754795407696,0.309,810.83,809.65,1.304]
[1754795407993,0.5,810.74,809.65,1.304]
[1754795408892,0.309,810.69,809.65,1.304]
[1754795409092,0.309,810.49,809.65,1.304]
[1754795409296,0.5,810.6,809.65,1.304]
[1754795410197,0.329,810.64,809.65,1.304]
[1754795410398,0.309,810.6,809.65,1.304]
[1754795410597,0.294,810.44,809.65,1.304]
[1754795410798,0.309,810.41,809.03,2.74852257]
[1754795410994,0.5,810.49,808.97,2.74852257]
[1754795411600,0.309,810.4,808.85,2.74852257]
[1754795411799,0.309,810.32,808.76,2.74852257]
[1754795412098,0.5,810.39,808.76,2.74852257]
[1754795412300,0.5,810.39,808.69,2.74852257]
[1754795412795,0.5,810.39,808.61,2.96357434]
[1754795413002,0.5,810.55,808.61,2.96357434]
[1754795413197,0.467,810.47,808.61,2.96357434]
[1754795413501,0.5,810.57,808.61,0.21505177]
[1754795413699,0.5,810.6,808.61,0.21505177]
[1754795413897,0.5,810.69,808.77,2.74852257]
[1754795414397,0.5,810.74,808.8,2.74852257]
[1754795414599,0.329,810.64,808.8,2.74852257]
[1754795414797,0.82874681,811.06,808.8,2.74852257]
[1754795414798,0.329,810.7,808.8,2.74852257]
[1754795415202,0.5,810.77,808.8,2.74852257]
[1754795415398,0.329,810.76,808.8,2.74852257]
[1754795415603,0.329,810.76,808.78,2.74852257]
[1754795415901,0.422,810.76,808.78,2.74852257]
[1754795416198,0.422,810.76,808.79,2.74852257]
[1754795416199,0.437,810.76,808.79,2.74852257]
[1754795416602,0.313,810.68,808.83,2.74852257]
[1754795416801,0.294,810.68,808.83,2.74852257]
[1754795417001,0.5,810.68,808.62,1.241]
[1754795417205,0.298,810.5,808.62,1.241]
[1754795417705,0.5,810.55,808.62,1.241]
[1754795419406,0.5,810.48,808.62,1.241]
[1754795420106,0.317,810.5,808.62,1.241]
[1754795420508,0.298,810.59,808.62,1.241]
[1754795420710,0.313,810.68,808.62,1.241]
[1754795420909,0.5,810.71,808.62,1.241]
[1754795421506,0.313,810.68,808.62,1.241]
[1754795421811,0.317,810.59,808.62,1.241]
[1754795422010,0.317,810.59,808.62,3.98952257]
[1754795422210,0.5,810.66,808.62,3.98952257]
[1754795422410,0.5,810.66,808.62,1.241]
[1754795422610,0.5,810.71,808.62,1.241]
[1754795423914,0.332,810.68,808.63,2.74852257]
[1754795424115,0.5,810.71,808.63,2.74852257]
[1754795424409,0.5,810.71,808.62,1.241]
[1754795425119,0.5,810.71,808.63,2.74852257]
[1754795425614,0.5,810.71,808.69,2.74852257]
[1754795426515,0.5,810.71,808.62,1.241]
[1754795429217,0.307,810.59,808.62,1.241]
[1754795429422,0.308,810.68,808.62,1.241]
[1754795429620,0.321,810.42,808.62,1.241]
[1754795429823,0.307,810.46,808.62,1.241]
[1754795430024,0.5,810.52,808.62,1.241]
[1754795430323,0.5,810.45,808.62,1.241]
[1754795430523,0.5,810.49,808.62,1.241]
[1754795430724,0.307,810.34,808.62,1.241]
[1754795430920,0.5,810.49,808.62,1.241]
[1754795431220,0.82874681,810.94,808.62,1.241]
[1754795431221,0.5,810.47,808.62,1.241]
[1754795432421,0.5,810.49,808.62,1.241]
[1754795433522,0.5,810.61,808.62,1.241]
[1754795434025,0.5,810.61,808.66,2.74852257]
[1754795434423,0.5,810.61,808.62,1.241]
[1754795434627,0.5,810.69,808.62,1.241]
[1754795434829,0.5,810.71,808.67,2.74852257]
[1754795435026,0.308,810.68,808.67,2.74852257]
[1754795435227,0.5,810.71,808.67,2.74852257]
[1754795435428,0.5,810.71,808.66,2.74852257]
[1754795435829,0.308,810.68,808.66,2.74852257]
[1754795436029,0.5,810.71,808.7,2.74852257]
[1754795436429,0.5,810.67,808.74,2.74852257]
[1754795436626,0.5,810.71,808.74,2.74852257]
[1754795437027,0.307,810.67,808.74,2.74852257]
[1754795437226,0.321,810.59,808.74,2.74852257]
[1754795437525,0.5,810.7,808.76,2.74852257]
[1754795437730,0.5,810.71,808.76,2.74852257]
[1754795438431,0.5,810.75,808.76,2.74852257]
[1754795438627,0.81035227,810.74,808.62,1.241]
[1754795438831,0.322,810.68,808.62,1.241]
[1754795439030,0.343,810.76,808.62,1.241]
[1754795439631,0.329,810.76,808.62,1.241]
[1754795440026,0.343,810.76,808.62,1.241]
[1754795440227,0.5,810.82,808.62,1.241]
[1754795442733,0.342,810.76,808.62,1.241]
[1754795442931,0.5,810.82,808.62,1.241]
[1754795443229,0.307,810.68,808.62,1.241]
[1754795443429,0.5,810.62,808.62,1.241]
[1754795443930,0.5,810.62,808.76,2.74852257]
[1754795444432,0.5,810.55,808.77,2.74852257]
[1754795444632,0.5,810.46,808.84,2.74852257]
[1754795445131,0.5,810.46,808.87,2.74852257]
[1754795445735,0.5,810.46,808.81,2.74852257]
[1754795445928,0.5,810.57,808.81,2.74852257]
[1754795446132,0.5,810.57,808.75,2.74852257]
[1754795446735,0.4,810.61,808.73,2.74852257]
[1754795446934,0.81204002,810.6,808.73,2.74852257]
[1754795447135,0.81204002,810.59,808.73,2.74852257]
[1754795447332,0.81204002,810.58,808.76,2.74852257]
[1754795447632,0.5,810.62,808.76,2.74852257]
[1754795447833,0.5,810.62,808.79,2.74852257]
[1754795448031,0.5,810.63,808.79,2.74852257]
[1754795448229,0.5,810.63,808.81,2.74852257]
[1754795448739,0.5,810.63,808.93,2.74852257]
[1754795449336,0.5,810.63,808.97,2.74852257]
[1754795449937,0.5,810.63,808.99,2.74852257]
[1754795450338,0.5,810.63,809.05,2.74852257]
[1754795450531,2.78268353,812.0,808.68,3.85178554]
[1754795450532,0.346,810.36,808.68,3.85178554]
[1754795450737,0.346,810.36,808.62,1.241]
[1754795451137,0.346,810.36,808.67,2.74852257]
[1754795451338,0.327,810.27,808.67,2.74852257]
[1754795451537,0.346,810.36,808.67,2.74852257]
[1754795451738,0.5,810.39,808.67,2.74852257]
[1754795452137,0.5,810.39,808.62,1.241]
[1754795453537,0.311,810.3,808.62,1.241]
[1754795453740,0.5,810.39,808.62,1.241]
[1754795454436,0.5,810.49,808.62,1.241]
[1754795454636,0.33,810.44,808.62,1.241]
[1754795456336,0.311,810.43,808.62,1.241]
[1754795456540,0.33,810.44,808.62,1.241]
[1754795457042,0.33,810.44,808.51,0.21505443]
[1754795457844,0.31,810.29,808.51,0.21505443]
[1754795458038,0.5,810.4,808.51,0.21505443]
[1754795458445,0.329,810.44,808.51,0.21505443]
[1754795458638,0.5,810.38,808.51,0.21505443]
[1754795459044,0.309,810.32,808.51,0.21505443]
[1754795459239,0.5,810.35,808.51,0.21505443]
[1754795460141,0.345,810.46,808.51,0.21505443]
[1754795460444,0.294,810.31,808.51,0.21505443]
[1754795460742,0.294,810.23,808.51,0.21505443]
[1754795461138,0.325,810.04,808.51,0.21505443]
[1754795461340,0.2147651,811.3,808.51,0.21505443]
[1754795461341,0.375,810.21,808.51,0.21505443]
[1754795461842,0.375,810.21,808.4,1.176]
[1754795462045,0.483,810.21,808.4,1.176]
[1754795462241,0.5,810.21,808.4,1.176]
[1754795462445,0.5,810.29,808.4,1.176]
[1754795462847,0.294,810.2,808.4,1.176]
[1754795463045,0.294,810.08,808.4,1.176]
[1754795463346,0.325,809.99,808.4,1.176]
[1754795463547,0.279,810.01,808.4,1.176]
[1754795463746,0.309,810.2,808.4,1.176]
[1754795464048,0.294,810.1,808.43,2.74852257]
[1754795464243,0.5,810.14,808.43,2.74852257]
[1754795464447,0.294,810.2,808.43,2.74852257]
[1754795464643,0.5,810.13,808.44,2.74852257]
[1754795464849,0.468,810.13,808.44,2.74852257]
[1754795465144,0.468,810.13,808.46,2.74852257]
[1754795465347,0.5,810.29,808.46,2.74852257]
[1754795465547,0.5,810.27,808.43,2.74852257]
[1754795465748,0.309,810.2,808.43,2.74852257]
[1754795465947,0.5,810.22,808.43,2.74852257]
[1754795466245,0.468,810.22,808.43,2.74852257]
[1754795466450,0.5,810.29,808.43,2.74852257]
[1754795466647,0.5,810.29,808.46,2.74852257]
[1754795467251,0.296,810.22,808.46,2.74852257]
[1754795467448,0.5,810.24,808.46,2.74852257]
[1754795467649,0.5,810.29,808.49,2.74852257]
[1754795467947,0.5,810.26,808.49,2.74852257]
[1754795468249,0.5,810.23,808.49,2.74852257]
[1754795468851,0.5,810.2,808.54,2.74852257]
[1754795469250,0.5,810.2,808.52,2.74852257]
[1754795469648,0.5,810.29,808.52,2.74852257]
[1754795469847,0.5,810.29,808.46,2.74852257]
[1754795470349,0.5,810.29,808.47,2.74852257]
[1754795470753,0.5,810.29,808.46,2.74852257]
[1754795471349,0.5,810.29,808.54,2.74852257]
[1754795471950,0.5,810.29,808.61,2.74852257]
[1754795472250,0.313,810.21,808.61,2.74852257]
[1754795472552,0.5,810.32,808.61,2.74852257]
[1754795472947,0.5,810.32,808.4,1.176]
[1754795472948,0.313,810.13,808.57,2.74852257]
[1754795473248,0.5,810.27,808.57,2.74852257]
[1754795473553,0.313,810.1,808.56,2.74852257]
[1754795473752,0.5,810.16,808.56,2.74852257]
[1754795473952,0.5,810.16,808.53,2.74852257]
[1754795474450,0.406,809.99,808.45,2.74852257]
[1754795474749,0.5,810.08,808.45,2.74852257]
[1754795474950,0.5,810.08,808.43,2.74852257]
[1754795475448,0.5,810.12,808.43,2.74852257]
[1754795475654,0.5,810.12,808.44,2.74852257]
[1754795477053,0.5,810.12,808.48,2.74852257]
[1754795477556,0.5,810.12,808.49,2.74852257]
[1754795478251,0.5,810.08,808.49,2.74852257]
[1754795478653,0.5,810.08,808.42,2.74852257]
[1754795479154,1.10577159,810.95,808.4,3.92452257]
[1754795479155,0.33,810.05,808.4,3.92452257]
[1754795479351,0.346,810.06,808.4,3.92452257]
[1754795479554,0.346,810.1,808.4,3.92452257]
[1754795479755,0.311,810.1,808.4,1.176]
[1754795479955,0.33,810.05,808.4,1.176]
[1754795480653,0.33,810.05,808.41,2.74852257]
[1754795481258,0.295,810.03,808.4,1.176]
[1754795483660,0.5,810.08,808.4,1.176]
[1754795483953,0.311,810.01,808.4,1.176]
[1754795484154,0.5,810.08,808.4,1.176]
[1754795484754,0.33,810.01,808.4,1.176]
[1754795485353,0.33,810.1,808.4,1.176]
[1754795485854,0.327,810.04,808.4,1.176]
[1754795486054,0.346,810.1,808.4,1.176]
[1754795486254,0.5,810.12,808.4,1.176]
[1754795486458,0.314,810.06,808.4,1.176]
[1754795486658,0.33,810.08,808.4,1.176]
[1754795487660,0.5,810.01,808.4,1.176]
[1754795487960,0.352,810.09,808.4,1.176]
[1754795488260,0.317,809.99,808.4,1.176]
[1754795488460,0.298,809.94,808.4,1.176]
[1754795488662,0.314,810.08,808.4,1.176]
[1754795488956,0.333,810.09,808.4,1.176]
[1754795489657,0.5,810.0,808.4,1.176]
[1754795489960,0.352,810.09,808.4,1.176]
[1754795490156,0.317,810.01,808.4,1.176]
[1754795490362,0.333,810.09,808.4,1.176]
[1754795490862,0.5,810.14,808.4,1.176]
[1754795491061,0.5,810.2,808.4,1.176]
[1754795491260,0.35,810.19,808.4,1.176]
[1754795492163,0.5,810.2,808.4,1.176]
[1754795492359,0.5,810.2,808.49,2.74852257]
[1754795492764,0.5,810.2,808.5,2.74852257]
[1754795493264,0.5,810.2,808.49,2.74852257]
[1754795493763,0.5,810.2,808.4,1.176]
[1754795493960,0.352,810.22,808.4,1.176]
[1754795494463,0.5,810.3,808.4,1.176]
[1754795494760,0.348,810.32,808.4,1.176]
[1754795495060,0.333,810.2,808.4,1.176]
[1754795496765,0.328,810.19,808.4,1.176]
[1754795496965,0.329,810.32,808.4,1.176]
[1754795497664,0.307,810.15,808.4,1.176]
[1754795497866,0.328,810.22,808.4,1.176]
[1754795499764,0.342,810.2,808.4,1.176]
[1754795500066,0.342,810.22,808.4,1.176]
[1754795501369,0.339,810.19,808.4,1.176]
[1754795501670,0.5,810.3,808.4,1.176]
[1754795501869,0.307,810.22,808.4,1.176]
[1754795502065,0.329,810.32,808.4,1.176]
[1754795502270,0.5,810.34,808.4,1.176]
[1754795502570,0.342,810.32,808.4,1.176]
[1754795502769,0.5,810.34,808.53,2.74852257]
[1754795503269,0.328,810.3,808.54,2.74852257]
[1754795503469,0.328,810.32,808.54,2.74852257]
[1754795503675,0.328,810.32,808.58,2.74852257]
[1754795503966,0.342,810.3,808.58,2.74852257]
[1754795504166,0.342,810.32,808.58,2.74852257]
[1754795504365,0.5,810.34,808.58,2.74852257]
[1754795504866,0.5,810.34,808.51,2.74852257]
[1754795505766,0.307,810.25,808.64,2.74852257]
[1754795505966,0.314,810.33,808.64,2.74852257]
[1754795506366,0.314,810.33,808.7,2.74852257]
[1754795507370,0.314,810.33,808.71,2.74852257]
[1754795507568,0.35,810.39,808.71,2.74852257]
[1754795507768,0.35,810.39,808.55,1.197]
[1754795507769,0.35,810.39,808.69,2.74852257]
[1754795507970,0.35,810.33,808.69,2.74852257]
[1754795508267,0.35,810.39,808.69,2.74852257]
[1754795508469,0.35,810.39,808.83,2.74852257]
[1754795508772,0.5,810.41,808.83,2.74852257]
[1754795508967,0.5,810.45,808.89,2.74852257]
[1754795509372,0.5,810.52,808.89,2.74852257]
[1754795509670,0.315,810.59,808.9,2.74852257]
[1754795509970,0.5,810.67,809.08,2.74852257]
[1754795510169,0.2147651,811.3,809.08,2.74852257]
[1754795510170,0.5,810.68,809.08,2.74852257]
[1754795510471,0.5,810.68,809.44,2.74852257]
[1754795510671,0.332,810.69,809.44,2.74852257]
[1754795511174,0.332,810.69,809.58,2.74852257]
[1754795511564,0.332,810.69,809.54,2.74852257]
[1754795511972,0.315,810.67,809.54,2.74852257]
[1754795512172,0.332,810.69,809.54,2.74852257]
[1754795512570,0.332,810.69,809.51,2.74852257]
[1754795512871,0.346,810.77,809.51,2.74852257]
[1754795513570,0.346,810.77,809.45,2.74852257]
[1754795514075,0.346,810.77,809.46,2.74852257]
[1754795514676,0.346,810.77,809.43,2.74852257]
[1754795514880,0.332,810.69,809.43,2.74852257]
[1754795515181,0.346,810.77,809.43,2.74852257]
[1754795515782,0.5,810.78,809.4,2.74852257]
[1754795515980,0.346,810.77,809.4,2.74852257]
[1754795516178,0.346,810.77,809.39,2.74852257]
[1754795516981,0.346,810.77,809.36,2.74852257]
[1754795517182,0.297,810.66,809.36,2.74852257]
[1754795517885,0.297,810.66,809.31,2.74852257]
[1754795518384,0.297,810.66,809.28,2.74852257]
[1754795519083,0.297,810.66,809.17,2.74852257]
[1754795519383,0.297,810.66,809.15,2.74852257]
[1754795519581,0.347,810.77,809.15,2.74852257]
[1754795519781,0.5,810.79,809.15,2.74852257]
[1754795519984,0.317,810.71,809.15,2.74852257]
[1754795520180,0.333,810.75,809.15,2.74852257]
[1754795520485,0.317,810.63,809.15,2.74852257]
[1754795520686,0.5,810.74,809.15,2.74852257]
[1754795521085,0.5,810.79,808.91,3.85178554]
[1754795521582,0.352,810.77,808.91,3.85178554]
[1754795521785,0.352,810.77,808.75,2.74852257]
[1754795521980,0.5,810.79,808.72,2.74852257]
[1754795522181,0.5,810.99,808.76,1.279]
[1754795522384,0.333,810.93,808.76,1.279]
[1754795522681,0.352,810.95,809.11,2.74852257]
[1754795522886,0.81684895,810.94,809.11,2.74852257]
[1754795523088,0.2147651,811.3,809.13,2.74852257]
[1754795523089,0.317,810.83,809.13,2.74852257]
[1754795523287,0.5,810.93,809.13,2.74852257]
[1754795523589,0.5,810.93,809.09,2.74852257]
[1754795523791,0.352,810.95,809.09,2.74852257]
[1754795524088,0.352,810.93,809.09,2.74852257]
[1754795524291,0.5,810.91,809.09,2.74852257]
[1754795524493,0.5,810.88,809.09,2.74852257]
[1754795524687,0.352,810.95,809.05,2.74852257]
[1754795524886,0.81619586,810.94,809.05,2.74852257]
[1754795525088,0.352,810.95,809.07,2.74852257]
[1754795525290,0.8159488,810.94,809.07,2.74852257]
[1754795525491,0.5,810.98,809.07,2.74852257]
[1754795525688,0.81590198,810.97,809.04,2.74852257]
[1754795525892,0.81590198,810.96,809.04,2.74852257]
[1754795526090,0.81590198,810.95,809.04,2.74852257]
[1754795526290,0.81590198,810.94,809.04,2.74852257]
[1754795526495,0.5,810.98,809.04,2.74852257]
[1754795526805,0.81562959,810.97,809.01,2.74852257]
[1754795526996,0.81562959,810.96,809.01,2.74852257]
[1754795527195,0.5,810.98,809.08,2.74852257]
[1754795527196,0.81562959,810.95,809.08,2.74852257]
[1754795527396,0.81562959,810.94,809.08,2.74852257]
[1754795527595,0.81562959,810.93,809.08,2.74852257]
[1754795527797,0.5,810.98,809.05,2.74852257]
[1754795527992,0.81530199,810.97,809.05,2.74852257]
[1754795528196,0.81530199,810.96,809.05,2.74852257]
[1754795528396,0.81530199,810.95,809.03,2.74852257]
[1754795528593,0.81530199,810.94,809.03,2.74852257]
[1754795528799,0.81530199,810.93,808.96,2.74852257]
[1754795528998,0.5,810.98,808.96,2.74852257]
[1754795529298,0.81503837,810.97,809.03,2.74852257]
[1754795529594,0.33,810.86,809.03,2.74852257]
[1754795529794,0.5,810.95,809.03,2.74852257]
[1754795529998,0.81476311,810.94,809.03,2.74852257]
[1754795530198,0.81476311,810.93,809.03,2.74852257]
[1754795530395,0.8145086,810.92,809.0,2.74852257]
[1754795530597,0.5,810.95,809.0,2.74852257]
[1754795530795,0.5,810.95,808.76,1.279]
[1754795530796,0.81450862,810.94,809.01,2.74852257]
[1754795531094,0.81450862,810.93,809.01,2.74852257]
[1754795531394,0.81450862,810.93,808.76,1.279]
[1754795531395,0.81450862,810.92,808.98,2.74852257]
[1754795531699,0.5,810.95,808.98,2.74852257]
[1754795531900,0.81427506,810.94,808.97,2.74852257]
[1754795532100,1.16227506,810.93,808.97,2.74852257]
[1754795532400,0.313,810.8,808.96,2.74852257]
[1754795532601,0.82936607,811.18,808.96,2.74852257]
[1754795532896,0.348,810.95,808.97,2.74852257]
[1754795533101,0.81405641,810.94,808.97,2.74852257]
[1754795533295,0.81405641,810.93,808.97,2.74852257]
[1754795533499,0.35,811.04,808.96,2.74852257]
[1754795533698,0.8136441,811.03,808.96,2.74852257]
[1754795533898,0.8136441,811.02,808.96,2.74852257]
[1754795534101,0.8136441,811.01,808.96,2.74852257]
[1754795534302,0.8136441,811.0,808.96,2.74852257]
[1754795534502,0.8136441,810.99,808.94,2.74852257]
[1754795534702,0.8136441,810.98,808.94,2.74852257]
[1754795534998,0.8136441,810.97,808.94,2.74852257]
[1754795535202,0.8136441,810.96,808.94,2.74852257]
[1754795535505,0.8136441,810.95,808.92,2.74852257]
[1754795535699,0.8136441,810.94,808.92,2.74852257]
[1754795535999,0.8136441,810.93,808.92,2.74852257]
[1754795536203,0.82936607,811.22,808.87,2.74852257]
[1754795536404,0.331,811.01,808.87,2.74852257]
[1754795536605,0.81319071,811.0,808.95,2.74852257]
[1754795536799,0.81319071,810.99,808.95,2.74852257]
[1754795537000,0.81319071,810.98,808.95,2.74852257]
[1754795537200,0.81319071,810.97,808.92,2.74852257]
[1754795537503,0.81319071,810.96,808.92,2.74852257]
[1754795537698,0.81319071,810.95,808.91,2.74852257]
[1754795537999,0.81319071,810.94,808.91,2.74852257]
[1754795538206,0.5,811.09,808.91,2.74852257]
[1754795538406,0.81298113,811.08,808.91,2.74852257]
[1754795538702,0.5,811.09,809.07,2.74852257]
[1754795539203,0.5,811.09,808.99,2.74852257]
[1754795539402,0.5,811.06,808.99,2.74852257]
[1754795539701,0.5,811.06,809.03,2.74852257]
[1754795539905,0.5,811.09,809.03,2.74852257]
[1754795540607,0.468,811.09,809.03,2.74852257]
[1754795540907,0.346,811.13,808.93,2.74852257]
[1754795541107,0.5,811.05,808.93,2.74852257]
[1754795541403,0.311,810.97,808.76,1.279]
[1754795541607,0.295,810.76,808.76,1.279]
[1754795542005,0.295,810.71,808.76,1.279]
[1754795542207,0.311,810.79,808.76,1.279]
[1754795542407,0.341,810.69,808.76,1.279]
[1754795542602,0.388,810.69,808.76,1.279]
[1754795542804,0.5,810.7,808.76,1.279]
[1754795544605,0.33,810.68,808.76,1.279]
[1754795544805,0.5,810.6,808.76,1.279]
[1754795545008,0.346,810.69,808.76,1.279]
[1754795545610,0.33,810.68,808.76,1.279]
[1754795545910,0.311,810.62,808.76,1.279]
[1754795546310,0.311,810.54,808.76,1.279]
[1754795546607,0.5,810.61,808.76,1.279]
[1754795547112,0.5,810.61,808.88,2.74852257]
[1754795547308,0.323,810.62,808.88,2.74852257]
[1754795547507,0.435,810.68,808.93,2.74852257]
[1754795547707,0.342,810.7,808.93,2.74852257]
[1754795548011,0.342,810.7,808.76,1.279]
[1754795548012,0.342,810.7,808.95,2.74852257]
[1754795548609,0.328,810.7,808.85,2.74852257]
[1754795549311,0.328,810.7,808.86,2.74852257]
[1754795549611,0.307,810.55,808.86,2.74852257]
[1754795549813,0.328,810.68,808.78,2.74852257]
[1754795550109,0.5,810.67,808.78,2.74852257]
[1754795550309,0.5,810.6,808.78,2.74852257]
[1754795550512,0.21502054,810.23,808.78,2.74852257]
[1754795550807,0.21502054,810.23,808.82,2.74852257]
[1754795551207,0.21502054,810.23,808.83,2.74852257]
[1754795551809,0.21502054,810.23,808.87,2.74852257]
[1754795552211,0.82936607,811.26,808.87,2.74852257]
[1754795552411,0.21499929,810.33,808.89,2.74852257]